fUSD/lending_fUSD_20260622
["ID","MTS","AMOUNT","RATE_DAILY","PERIOD"]
[426040422,1782130242000,-500.0,0.00014999,2]
[426040433,1782130242000,-500.0,0.00014999,2]
[426040420,1782130242000,-500.0,0.00014999,2]
[426040436,1782130242000,-500.0,0.00014999,2]
[426040427,1782130242000,-500.0,0.00014999,2]
[426040428,1782130242000,-500.0,0.00014999,2]
[426040432,1782130242000,-500.0,0.00014999,2]
[426040425,1782130242000,-500.0,0.00014999,2]
[426040424,1782130242000,-500.0,0.00014999,2]
[426040423,1782130242000,-500.0,0.00014999,2]
[426040421,1782130242000,-500.0,0.00014999,2]
[426040431,1782130242000,-500.0,0.00014999,2]
[426040485,1782130243000,-500.0,0.00014999,2]
[426040479,1782130243000,-500.0,0.00014999,2]
[426040483,1782130243000,-500.0,0.00014999,2]
[426040475,1782130243000,-500.0,0.00014999,2]
[426040481,1782130243000,-500.0,0.00014999,2]
[426040474,1782130243000,-500.0,0.00014999,2]
[426040478,1782130243000,-500.0,0.00014999,2]
[426040470,1782130243000,-500.0,0.00014999,2]
[426040480,1782130243000,-500.0,0.00014999,2]
[426040476,1782130243000,-500.0,0.00014999,2]
[426040472,1782130243000,-500.0,0.00014999,2]
[426040468,1782130243000,-500.0,0.00014999,2]
[426040466,1782130243000,-500.0,0.00014999,2]
[426040464,1782130243000,-500.0,0.00014999,2]
[426040496,1782130243000,-5074863.0361073,0.00015,2]
[426040477,1782130243000,-500.0,0.00014999,2]
[426040486,1782130243000,-300.0,0.00014999,2]
[426040500,1782130243000,-500.0,0.00015,2]
[426040487,1782130243000,-666.0,0.00014999,2]
[426040510,1782130243000,-500.0,0.00011782,2]
[426040511,1782130243000,-7190.32396751,0.00015,2]
[426040484,1782130243000,-500.0,0.00014999,2]
[426040508,1782130243000,-464.97195931,0.00011782,2]
[426040507,1782130243000,-35.02804069,0.00011782,2]
[426040505,1782130243000,-150.0,0.00011782,2]
[426040506,1782130243000,-267.66195931,0.00011782,2]
[426040509,1782130243000,-500.0,0.00011782,2]
[426040504,1782130243000,-3662.6295294,0.00015,2]
[426040502,1782130243000,-150.0,0.00011782,2]
[426040501,1782130243000,-150.0,0.00011782,2]
[426040492,1782130243000,-8162358.5415198,0.00015,2]
[426040490,1782130243000,-300.0,0.00014999,2]
[426040494,1782130243000,-2521.44272009,0.00015,14]
[426040488,1782130243000,-300.0,0.00014999,2]
[426040503,1782130243000,-150.0,0.00011782,2]
[426040512,1782130244000,-2203873.92874242,0.00015,2]
[426040513,1782130244000,-4091604.74222158,0.00015,2]
[426040514,1782130244000,-288674.08688982,0.00015,2]
[426040521,1782130246000,-1849.0,0.00015,2]
[426040520,1782130246000,-2270.81606068,0.00015,2]
[426040519,1782130246000,-167.7505241,0.00013698,2]
[426040518,1782130246000,-155.12495522,0.00010614,2]
[426040525,1782130307000,-504.92067818,0.00010413,2]
[426040526,1782130336000,1080.90492825,0.00010512,3]
[426040527,1782130336000,1080.90492825,0.00010512,3]
[426040528,1782130336000,1080.90492825,0.00010512,3]
[426040530,1782130336000,1080.90492825,0.00010512,3]
[426040531,1782130336000,1080.90492826,0.00010512,3]
[426040532,1782130336000,223.52922186,0.00010827,7]
[426040529,1782130336000,1080.90492825,0.00010512,3]
[426040533,1782130337000,335.29383283,0.00011463,7]
[426040543,1782130361000,1306.15136854,0.00010512,3]
[426040542,1782130361000,-703.07056894,0.00010413,2]
[426040545,1782130362000,6000.0,0.000107,3]
[426040544,1782130362000,3000.0,0.000106,3]
[426040546,1782130363000,9100.0,0.000108,3]
[426040547,1782130364000,9759.83545226,0.000109,3]
[426040548,1782130364000,2340.16454774,0.000109,3]
[426040552,1782130387000,176.33235494,0.00010852,7]
[426040554,1782130415000,-201.99779579,0.00010313,2]
[426040557,1782130448000,242.31,0.00010295,3]
[426040559,1782130468000,-2034.633,0.00010303,2]
[426040562,1782130522000,-212.69,0.00010231,2]
[426040563,1782130523000,11338.73,0.00010064,2]
[426040565,1782130574000,-217.15,0.00010123,2]
[426040566,1782130601000,1593.6747517,0.00010064,2]
[426040567,1782130605000,519.60558506,9.614e-05,2]
[426040569,1782130606000,-150.0,0.00010164,2]
[426040568,1782130606000,-250.0,0.00010143,2]
[426040582,1782130607000,-500.0,0.00010414,2]
[426040580,1782130607000,-243.70718938,0.00010414,2]
[426040581,1782130607000,-500.0,0.00010414,2]
[426040579,1782130607000,-500.0,0.00010414,2]
[426040577,1782130607000,-150.0,0.00010413,2]
[426040578,1782130607000,-500.0,0.00010414,2]
[426040571,1782130607000,-150.0,0.00010264,2]
[426040574,1782130607000,-193.0,0.00010333,2]
[426040575,1782130607000,-150.0,0.00010363,2]
[426040583,1782130607000,-167.62977178,0.00010414,2]
[426040572,1782130607000,-440.06,0.00010295,2]
[426040570,1782130607000,-257.86625744,0.0001023,2]
[426040576,1782130607000,-150.0,0.00010365,2]
[426040584,1782130607000,-500.0,0.00010414,2]
[426040573,1782130607000,-180.852,0.00010303,2]
[426040586,1782130607000,-500.0,0.00010414,2]
[426040585,1782130607000,-500.0,0.00010414,2]
[426040598,1782130607000,-500.0,0.00010414,2]
[426040597,1782130607000,-500.0,0.00010414,2]
[426040596,1782130607000,-500.0,0.00010414,2]
[426040595,1782130607000,-500.0,0.00010414,2]
[426040594,1782130607000,-500.0,0.00010414,2]
[426040593,1782130607000,-500.0,0.00010414,2]
[426040591,1782130607000,-500.0,0.00010414,2]
[426040590,1782130607000,-500.0,0.00010414,2]
[426040589,1782130607000,-500.0,0.00010414,2]
[426040588,1782130607000,-500.0,0.00010414,2]
[426040587,1782130607000,-500.0,0.00010414,2]
[426040592,1782130607000,-500.0,0.00010414,2]
[426040599,1782130607000,-500.0,0.00010414,2]
[426040611,1782130608000,-722.66614269,0.00010414,2]
[426040610,1782130608000,-722.66614269,0.00010414,2]
[426040613,1782130608000,-722.66614269,0.00010414,2]
[426040608,1782130608000,-500.0,0.00010414,2]
[426040612,1782130608000,-722.66614269,0.00010414,2]
[426040609,1782130608000,-247.62302212,0.00010414,2]
[426040602,1782130608000,-500.0,0.00010414,2]
[426040606,1782130608000,-500.0,0.00010414,2]
[426040605,1782130608000,-500.0,0.00010414,2]
[426040604,1782130608000,-500.0,0.00010414,2]
[426040603,1782130608000,-500.0,0.00010414,2]
[426040601,1782130608000,-500.0,0.00010414,2]
[426040600,1782130608000,-500.0,0.00010414,2]
[426040607,1782130608000,-500.0,0.00010414,2]
[426040615,1782130608000,-722.66614269,0.00010414,2]
[426040618,1782130608000,-722.66614269,0.00010414,2]
[426040616,1782130608000,-722.66614269,0.00010414,2]
[426040614,1782130608000,-722.66614269,0.00010414,2]
[426040630,1782130608000,-722.66614269,0.00010414,2]
[426040629,1782130608000,-722.66614269,0.00010414,2]
[426040627,1782130608000,-722.66614269,0.00010414,2]
[426040628,1782130608000,-722.66614269,0.00010414,2]
[426040625,1782130608000,-722.66614269,0.00010414,2]
[426040626,1782130608000,-722.66614269,0.00010414,2]
[426040624,1782130608000,-722.66614269,0.00010414,2]
[426040622,1782130608000,-722.66614269,0.00010414,2]
[426040621,1782130608000,-722.66614269,0.00010414,2]
[426040620,1782130608000,-722.66614269,0.00010414,2]
[426040619,1782130608000,-722.66614269,0.00010414,2]
[426040617,1782130608000,-722.66614269,0.00010414,2]
[426040623,1782130608000,-722.66614269,0.00010414,2]
[426040640,1782130609000,-722.66614269,0.00010414,2]
[426040641,1782130609000,-722.66614269,0.00010414,2]
[426040639,1782130609000,-722.66614269,0.00010414,2]
[426040638,1782130609000,-722.66614269,0.00010414,2]
[426040637,1782130609000,-722.66614269,0.00010414,2]
[426040633,1782130609000,-722.66614269,0.00010414,2]
[426040636,1782130609000,-722.66614269,0.00010414,2]
[426040634,1782130609000,-722.66614269,0.00010414,2]
[426040632,1782130609000,-722.66614269,0.00010414,2]
[426040631,1782130609000,-722.66614269,0.00010414,2]
[426040635,1782130609000,-722.66614269,0.00010414,2]
[426040642,1782130609000,-722.66614269,0.00010414,2]
[426040643,1782130609000,-722.66614269,0.00010414,2]
[426040645,1782130609000,-722.66614269,0.00010414,2]
[426040647,1782130609000,-722.66614269,0.00010414,2]
[426040646,1782130609000,-722.66614269,0.00010414,2]
[426040648,1782130609000,-722.66614269,0.00010414,2]
[426040649,1782130609000,-722.66614269,0.00010414,2]
[426040650,1782130609000,-722.66614269,0.00010414,2]
[426040652,1782130609000,-722.66614269,0.00010414,2]
[426040651,1782130609000,-722.66614269,0.00010414,2]
[426040653,1782130609000,-722.66614269,0.00010414,2]
[426040654,1782130609000,-722.66614269,0.00010414,2]
[426040655,1782130609000,-249.28533823,0.00010414,2]
[426040644,1782130609000,-722.66614269,0.00010414,2]
[426040656,1782130628000,-486.69307552,0.00010414,2]
[426040658,1782130681000,-735.97841375,0.00010414,2]
[426040659,1782130683000,200.0,0.00010512,7]
[426040660,1782130684000,224.9,0.00010512,7]
[426040663,1782130735000,-461.54,0.00010147,2]
[426040664,1782130737000,-150.0,0.00010413,2]
[426040666,1782130737000,-250.0,0.00010415,2]
[426040667,1782130737000,-1579.0889053,0.00010415,2]
[426040665,1782130737000,-163.21078891,0.00010414,2]
[426040668,1782130737000,-629.23904562,0.00010418,2]
[426040671,1782130737000,-10281.0,0.00010493,2]
[426040669,1782130737000,-177.50282652,0.00010461,2]
[426040670,1782130737000,-727.0,0.00010493,2]
[426040673,1782130737000,500.0,0.00010412,2]
[426040674,1782130737000,500.0,0.00010412,2]
[426040675,1782130737000,500.0,0.00010412,2]
[426040676,1782130737000,500.0,0.00010412,2]
[426040677,1782130737000,500.0,0.00010412,2]
[426040678,1782130737000,500.0,0.00010412,2]
[426040679,1782130737000,418.07529058,0.00010412,2]
[426040680,1782130737000,500.0,0.00010412,2]
[426040672,1782130737000,500.0,0.00010412,2]
[426040683,1782130738000,216.35787048,0.00010413,2]
[426040682,1782130738000,500.0,0.00010412,2]
[426040681,1782130738000,500.0,0.00010412,2]
[426040684,1782130741000,172.72973787,0.00010461,2]
[426040689,1782130788000,-4886.92034302,0.00010344,2]
[426040690,1782130792000,3000.0,0.000106,3]
[426040691,1782130794000,6000.0,0.000107,3]
[426040692,1782130796000,9000.0,0.000108,3]
[426040693,1782130798000,12000.0,0.000109,3]
[426040695,1782130799000,295.56720601,0.00010512,3]
[426040694,1782130799000,1165.31235634,0.00010512,3]
[426040696,1782130807000,150.0,0.00010143,7]
[426040699,1782130820000,206.11706339,0.0001,2]
[426040701,1782130820000,78.79958561,0.0001,2]
[426040700,1782130820000,186.193351,0.0001,2]
[426040703,1782130838000,157.72041439,9.923e-05,2]
[426040705,1782130838000,344.62775157,9.923e-05,2]
[426040706,1782130838000,5545.55183404,9.923e-05,2]
[426040704,1782130838000,263.48,9.923e-05,2]
[426040707,1782130863000,-168.628321,0.00010344,2]
[426040708,1782130863000,-1920.13965698,0.00010344,2]
[426040709,1782130863000,-172.18018252,0.00010412,2]
[426040711,1782130863000,-171.71086729,0.00010441,2]
[426040710,1782130863000,-1772.38982033,0.00010413,2]
[426040715,1782130863000,-500.0,0.00010492,2]
[426040714,1782130863000,-171.71086729,0.00010461,2]
[426040717,1782130863000,-1004.72682314,0.00010493,2]
[426040716,1782130863000,-1000.0,0.00010493,2]
[426040718,1782130863000,-24262.53196586,0.00010493,2]
[426040713,1782130863000,-184.2706283,0.00010461,2]
[426040712,1782130863000,-171.71086729,0.00010459,2]
[426040719,1782130868000,209.2067638,0.00010492,7]
[426040720,1782130869000,313.81014572,0.00010499,7]
[426040724,1782130937000,200.0,9.895e-05,2]
[426040725,1782130940000,191.35,0.00030082,120]
[426040726,1782130949000,2000.0,9.836e-05,2]
[426040727,1782130995000,843.7040833,9.693e-05,2]
[426040728,1782130996000,871.09633719,9.693e-05,2]
[426040734,1782131028000,175.09,7.834e-05,2]
[426040738,1782131040000,166.66,0.00010059,2]
[426040739,1782131053000,165.16323458,0.00010492,7]
[426040741,1782131073000,1937.9,9.741e-05,2]
[426040746,1782131131000,-150.0,0.00010307,2]
[426040749,1782131153000,3218.41,9.507e-05,2]
[426040750,1782131157000,4000.0,0.00010027,2]
[426040751,1782131164000,1852.42,9.488e-05,2]
[426040752,1782131167000,890.28,9.482e-05,2]
[426040753,1782131184000,-970.7050142,0.00010278,2]
[426040763,1782131188000,-150.0,0.00010307,2]
[426040762,1782131188000,-166.34824264,0.00010307,2]
[426040760,1782131188000,-150.0,0.00010307,2]
[426040759,1782131188000,-152.37409428,0.00010307,2]
[426040754,1782131188000,-3029.2949858,0.00010278,2]
[426040757,1782131188000,-226.42330123,0.00010307,2]
[426040755,1782131188000,-150.0,0.00010307,2]
[426040756,1782131188000,-258.64187325,0.00010307,2]
[426040765,1782131188000,-500.0,0.00010349,2]
[426040758,1782131188000,-151.6823233,0.00010307,2]
[426040764,1782131188000,-150.0,0.00010307,2]
[426040761,1782131188000,-150.0,0.00010307,2]
[426040767,1782131188000,-192.99846935,0.00010391,2]
[426040766,1782131188000,-150.0,0.00010361,2]
[426040776,1782131188000,-530.27941633,0.00010392,2]
[426040775,1782131188000,-500.0,0.00010392,2]
[426040773,1782131188000,-500.0,0.00010392,2]
[426040774,1782131188000,-500.0,0.00010392,2]
[426040778,1782131188000,-383.32702386,0.00010392,2]
[426040777,1782131188000,-500.0,0.00010392,2]
[426040771,1782131188000,-500.0,0.00010392,2]
[426040769,1782131188000,-191.97026996,0.00010392,2]
[426040770,1782131188000,-150.0,0.00010392,2]
[426040768,1782131188000,-166.66,0.00010391,2]
[426040772,1782131188000,-500.0,0.00010392,2]
[426040779,1782131204000,-116.67297614,0.00010392,2]
[426040786,1782131205000,-500.0,0.00010392,2]
[426040780,1782131205000,-500.0,0.00010392,2]
[426040781,1782131205000,-500.0,0.00010392,2]
[426040783,1782131205000,-500.0,0.00010392,2]
[426040785,1782131205000,-500.0,0.00010392,2]
[426040782,1782131205000,-500.0,0.00010392,2]
[426040784,1782131205000,-500.0,0.00010392,2]
[426040787,1782131205000,-500.0,0.00010392,2]
[426040788,1782131205000,-500.0,0.00010392,2]
[426040789,1782131205000,-500.0,0.00010392,2]
[426040790,1782131205000,-500.0,0.00010392,2]
[426040792,1782131205000,-500.0,0.00010392,2]
[426040791,1782131205000,-500.0,0.00010392,2]
[426040793,1782131205000,-500.0,0.00010392,2]
[426040795,1782131205000,-500.0,0.00010392,2]
[426040794,1782131205000,-500.0,0.00010392,2]
[426040796,1782131205000,-500.0,0.00010392,2]
[426040797,1782131205000,-500.0,0.00010392,2]
[426040799,1782131205000,-500.0,0.00010392,2]
[426040798,1782131205000,-500.0,0.00010392,2]
[426040801,1782131210000,-1000.0,0.00010393,2]
[426040800,1782131210000,-1000.0,0.00010393,2]
[426040802,1782131210000,-1000.0,0.00010393,2]
[426040803,1782131210000,-1000.0,0.00010393,2]
[426040809,1782131211000,-2699.54693245,0.00010414,2]
[426040808,1782131211000,-150.45306755,0.00010399,2]
[426040806,1782131211000,-1000.0,0.00010393,2]
[426040807,1782131211000,-150.0,0.00010396,2]
[426040804,1782131211000,-1000.0,0.00010393,2]
[426040805,1782131211000,-1000.0,0.00010393,2]
[426040812,1782131212000,-150.0,0.00010416,2]
[426040811,1782131212000,-1708.30953773,0.00010414,2]
[426040813,1782131212000,-4099.85560867,0.00010425,2]
[426040814,1782131212000,-150.0,0.00010434,2]
[426040810,1782131212000,-191.97121912,0.00010414,2]
[426040816,1782131212000,-150.0,0.00010492,2]
[426040817,1782131212000,-150.0,0.00010492,2]
[426040818,1782131212000,-3441.8348536,0.00010493,2]
[426040819,1782131212000,-10000.0,0.00010493,2]
[426040815,1782131212000,-150.0,0.0001047,2]
[426040820,1782131213000,-10000.0,0.00010493,2]
[426040821,1782131218000,4844.94,9.702e-05,2]
[426040824,1782131220000,-6737.68059426,0.00010493,2]
[426040822,1782131220000,-1088.11773686,0.00010425,2]
[426040823,1782131220000,-369.20166888,0.00010425,2]
[426040825,1782131227000,3117.79,9.658e-05,2]
[426040826,1782131253000,-170.03104626,0.00010306,2]
[426040828,1782131256000,150.0,0.0001008,2]
[426040829,1782131270000,200.0,9.959e-05,2]
[426040830,1782131273000,200.0,9.959e-05,2]
[426040832,1782131285000,-150.45306755,0.00010292,2]
[426040831,1782131285000,-303.967551,0.00010254,2]
[426040833,1782131306000,-500.0,0.00010392,2]
[426040835,1782131307000,160.44,0.00010275,2]
[426040834,1782131307000,160.44,9.671e-05,2]
[426040836,1782131327000,6067.12,9.671e-05,2]
[426040837,1782131332000,-500.0,0.00010392,2]
[426040839,1782131333000,-500.0,0.00010392,2]
[426040838,1782131333000,-500.0,0.00010392,2]
[426040840,1782131333000,-500.0,0.00010392,2]
[426040842,1782131333000,-500.0,0.00010392,2]
[426040841,1782131333000,-500.0,0.00010392,2]
[426040844,1782131333000,-1511.87448798,0.00010425,2]
[426040845,1782131333000,-2190.66016588,0.00010425,2]
[426040846,1782131333000,-300.0,0.00010492,2]
[426040847,1782131333000,-150.0,0.00010492,2]
[426040848,1782131333000,-2697.46534614,0.00010493,2]
[426040843,1782131333000,-150.0,0.00010402,2]
[426040850,1782131334000,-5692.51275986,0.00010493,2]
[426040849,1782131334000,-4307.48724014,0.00010493,2]
[426040851,1782131335000,-10000.0,0.00010493,2]
[426040852,1782131337000,-10000.0,0.00010493,2]
[426040853,1782131338000,-10000.0,0.00010493,2]
[426040854,1782131339000,725.03502736,0.0001,2]
[426040855,1782131359000,-861.99183634,0.00010493,2]
[426040856,1782131378000,-216.35787048,0.00010392,2]
[426040857,1782131390000,4126.52,9.787e-05,2]
[426040868,1782131391000,-1165.31235634,0.00010512,3]
[426040872,1782131391000,-150.0,0.00010525,2]
[426040870,1782131391000,-1118.36601894,0.00010512,3]
[426040869,1782131391000,-1165.31235634,0.00010512,3]
[426040867,1782131391000,-869.74515033,0.00010512,3]
[426040866,1782131391000,-151.0,0.0001051,2]
[426040873,1782131391000,-4000.0,0.00010529,2]
[426040865,1782131391000,-857.8177528,0.0001051,2]
[426040862,1782131391000,-150.0,0.00010498,2]
[426040863,1782131391000,-1353.36766475,0.00010503,2]
[426040859,1782131391000,-16372.4954038,0.00010493,2]
[426040860,1782131391000,-150.0,0.00010494,2]
[426040861,1782131391000,-193.0,0.00010495,2]
[426040864,1782131391000,-150.0,0.00010505,2]
[426040871,1782131391000,-1093.09882512,0.00010512,3]
[426040858,1782131391000,-926.37835969,0.0001048,2]
[426040877,1782131391000,-4900.0,0.000106,3]
[426040889,1782131391000,-4000.0,0.00010779,2]
[426040888,1782131391000,-150.0,0.00010765,2]
[426040887,1782131391000,-150.0,0.00010743,2]
[426040874,1782131391000,-150.0,0.00010536,2]
[426040884,1782131391000,-9900.0,0.000107,3]
[426040886,1782131391000,-166.66,0.00010723,2]
[426040883,1782131391000,-150.0,0.00010689,2]
[426040885,1782131391000,-248.97476122,0.00010702,7]
[426040881,1782131391000,-150.0,0.00010689,2]
[426040880,1782131391000,-217.15,0.00010685,2]
[426040879,1782131391000,-150.0,0.00010634,2]
[426040875,1782131391000,-150.0,0.00010561,2]
[426040878,1782131391000,-150.0,0.00010608,2]
[426040876,1782131391000,-150.0,0.0001058,2]
[426040882,1782131391000,-150.0,0.00010689,2]
[426040895,1782131392000,-268809.32258277,0.00010842,2]
[426040894,1782131392000,-150.0,0.00010816,2]
[426040892,1782131392000,-150.0,0.00010798,2]
[426040893,1782131392000,-14800.0,0.000108,3]
[426040891,1782131392000,-184.2706283,0.00010787,2]
[426040890,1782131392000,-500.0,0.00010779,2]
[426040897,1782131411000,-460.65949019,0.00010571,2]
[426040896,1782131411000,-2547.95412992,0.00010571,2]
[426040899,1782131411000,-147.68725483,0.00010571,2]
[426040898,1782131411000,-734.66592417,0.00010571,2]
[426040902,1782131428000,-2074.92003285,0.00010571,2]
[426040903,1782131430000,989.68,0.00010012,2]
[426041007,1782131433000,-132.97283069,0.00010401,2]
[426041002,1782131433000,-114.11339709,0.00010401,2]
[426041005,1782131433000,-948.73847357,0.00010401,2]
[426041004,1782131433000,-948.73847357,0.00010401,2]
[426041006,1782131433000,-815.76564288,0.00010401,2]
[426041003,1782131433000,-834.62507648,0.00010401,2]
[426041001,1782131433000,-948.73847357,0.00010401,2]
[426040994,1782131433000,-948.73847357,0.00010401,2]
[426040996,1782131433000,-948.73847357,0.00010401,2]
[426040997,1782131433000,-948.73847357,0.00010401,2]
[426041000,1782131433000,-948.73847357,0.00010401,2]
[426040993,1782131433000,-948.73847357,0.00010401,2]
[426040991,1782131433000,-948.73847357,0.00010401,2]
[426040989,1782131433000,-133.41262007,0.00010401,2]
[426040998,1782131433000,-948.73847357,0.00010401,2]
[426040999,1782131433000,-948.73847357,0.00010401,2]
[426040990,1782131433000,-948.73847357,0.00010401,2]
[426040988,1782131433000,-815.3258535,0.00010401,2]
[426040986,1782131433000,-797.59445327,0.00010401,2]
[426040987,1782131433000,-151.1440203,0.00010401,2]
[426040995,1782131433000,-948.73847357,0.00010401,2]
[426041008,1782131433000,-948.73847357,0.00010401,2]
[426040992,1782131433000,-948.73847357,0.00010401,2]
[426041011,1782131433000,-948.73847357,0.00010401,2]
[426041009,1782131433000,-948.73847357,0.00010401,2]
[426041031,1782131433000,-948.73847357,0.00010401,2]
[426041029,1782131433000,-948.73847357,0.00010401,2]
[426041030,1782131433000,-948.73847357,0.00010401,2]
[426041028,1782131433000,-948.73847357,0.00010401,2]
[426041027,1782131433000,-948.73847357,0.00010401,2]
[426041021,1782131433000,-948.73847357,0.00010401,2]
[426041020,1782131433000,-948.73847357,0.00010401,2]
[426041018,1782131433000,-948.73847357,0.00010401,2]
[426041014,1782131433000,-948.73847357,0.00010401,2]
[426041025,1782131433000,-948.73847357,0.00010401,2]
[426041022,1782131433000,-948.73847357,0.00010401,2]
[426041010,1782131433000,-948.73847357,0.00010401,2]
[426041019,1782131433000,-948.73847357,0.00010401,2]
[426041013,1782131433000,-948.73847357,0.00010401,2]
[426041023,1782131433000,-948.73847357,0.00010401,2]
[426041024,1782131433000,-948.73847357,0.00010401,2]
[426041026,1782131433000,-948.73847357,0.00010401,2]
[426041015,1782131433000,-948.73847357,0.00010401,2]
[426041017,1782131433000,-948.73847357,0.00010401,2]
[426041016,1782131433000,-948.73847357,0.00010401,2]
[426041012,1782131433000,-948.73847357,0.00010401,2]
[426041072,1782131434000,-19800.0,0.000109,3]
[426041054,1782131434000,-190.7,0.00010842,2]
[426041064,1782131434000,-200.0,0.00010842,2]
[426041069,1782131434000,-1000.0,0.00010899,2]
[426041066,1782131434000,-160.44,0.00010879,2]
[426041067,1782131434000,-150.0,0.00010879,2]
[426041070,1782131434000,-1000.0,0.00010899,2]
[426041057,1782131434000,-208.3,0.00010842,2]
[426041068,1782131434000,-1000.0,0.00010899,2]
[426041071,1782131434000,-200.0,0.000109,2]
[426041062,1782131434000,-208.3,0.00010842,2]
[426041079,1782131434000,-1000.0,0.00010958,2]
[426041073,1782131434000,-150.0,0.00010907,2]
[426041065,1782131434000,-150.0,0.00010852,2]
[426041074,1782131434000,-1000.0,0.00010936,2]
[426041080,1782131434000,-1000.0,0.00010958,2]
[426041077,1782131434000,-200.0,0.0001095,2]
[426041087,1782131434000,-1000.0,0.00010958,2]
[426041076,1782131434000,-150.0,0.00010943,2]
[426041078,1782131434000,-1000.0,0.00010958,2]
[426041063,1782131434000,-208.2,0.00010842,2]
[426041081,1782131434000,-1000.0,0.00010958,2]
[426041082,1782131434000,-1000.0,0.00010958,2]
[426041083,1782131434000,-1000.0,0.00010958,2]
[426041075,1782131434000,-14887.07,0.00010936,2]
[426041061,1782131434000,-208.3,0.00010842,2]
[426041044,1782131434000,-500.0,0.00010599,2]
[426041056,1782131434000,-208.3,0.00010842,2]
[426041084,1782131434000,-1000.0,0.00010958,2]
[426041033,1782131434000,-948.73847357,0.00010401,2]
[426041032,1782131434000,-948.73847357,0.00010401,2]
[426041037,1782131434000,-4729.27826936,0.00010571,2]
[426041035,1782131434000,-948.73847357,0.00010401,2]
[426041034,1782131434000,-948.73847357,0.00010401,2]
[426041036,1782131434000,-948.73847357,0.00010401,2]
[426041039,1782131434000,-175.42542329,0.00010571,2]
[426041038,1782131434000,-1742.84092518,0.00010571,2]
[426041043,1782131434000,-500.0,0.00010599,2]
[426041041,1782131434000,-500.0,0.00010599,2]
[426041040,1782131434000,-224.84270179,0.00010599,2]
[426041042,1782131434000,-500.0,0.00010599,2]
[426041049,1782131434000,-500.0,0.00010599,2]
[426041045,1782131434000,-500.0,0.00010599,2]
[426041046,1782131434000,-280.24030389,0.00010599,2]
[426041047,1782131434000,-500.0,0.00010599,2]
[426041048,1782131434000,-500.0,0.00010599,2]
[426041051,1782131434000,-150.0,0.00010841,2]
[426041050,1782131434000,-150.0,0.00010599,2]
[426041053,1782131434000,-190.7,0.00010842,2]
[426041052,1782131434000,-27187.45456659,0.00010842,2]
[426041055,1782131434000,-208.3,0.00010842,2]
[426041060,1782131434000,-208.3,0.00010842,2]
[426041058,1782131434000,-208.3,0.00010842,2]
[426041059,1782131434000,-208.3,0.00010842,2]
[426041086,1782131434000,-1000.0,0.00010958,2]
[426041101,1782131434000,-166.66,0.00011068,2]
[426041092,1782131434000,-150.0,0.00010994,2]
[426041122,1782131434000,-150.0,0.00011261,2]
[426041118,1782131434000,-150.0,0.00011223,2]
[426041112,1782131434000,-150.0,0.00011125,2]
[426041120,1782131434000,-150.0,0.00011234,2]
[426041117,1782131434000,-44949.59504929,0.00011204,2]
[426041121,1782131434000,-217.15,0.00011248,2]
[426041126,1782131434000,-150.0,0.00011288,2]
[426041136,1782131434000,-166.66,0.00011397,2]
[426041130,1782131434000,-150.0,0.00011343,2]
[426041137,1782131434000,-150.0,0.00011398,2]
[426041129,1782131434000,-373.46214187,0.00011331,7]
[426041115,1782131434000,-150.0,0.00011179,2]
[426041127,1782131434000,-150.0,0.00011325,2]